Workbook

Sheet Лист1
B2: Description | C2: Plan | D2: Fact | E2: Deviation | F2: Plan | G2: Fact | H2: Deviation | I2: Plan | J2: Fact | K2: Deviation | L2: Plan | M2: Fact | N2: Deviation | O2: Plan | P2: Fact | Q2: Deviation | R2: Plan | S2: Fact | T2: Deviation | U2: Plan | V2: Fact | W2: Deviation | X2: Plan | Y2: Fact | Z2: Deviation | AA2: Plan | AB2: Fact | AC2: Deviation | AD2: Plan | AE2: Fact | AF2: Deviation | AG2: Plan | AH2: Fact | AI2: Deviation | AJ2: Plan | AK2: Fact | AL2: Deviation | AM2: Plan | AN2: Fact | AO2: Deviation | AP2: Plan | AQ2: Fact | AR2: Deviation | AS2: Plan | AT2: Fact | AU2: Deviation | AV2: Plan | AW2: Fact | AX2: Deviation | AY2: Plan | AZ2: Fact | BA2: Deviation | BB2: Plan | BC2: Fact | BD2: Deviation | BE2: Plan | BF2: Fact | BG2: Deviation | BH2: Plan | BI2: Fact | BJ2: Deviation | BK2: Plan | BL2: Fact | BM2: Deviation | BN2: Plan | BO2: Fact | BP2: Deviation | BQ2: Plan | BR2: Fact | BS2: Deviation | BT2: Plan | BU2: Fact | BV2: Deviation | BW2: Plan | BX2: Fact | BY2: Deviation
B3: Date | C3: 2013-03-07 | D3: 2013-03-07 | E3: 2013-03-07
B4: Number of Tournaments (1) | C4: 32 | D4: 30 | E4: =D4-C4 -> -2 | F4: 40 | H4: =G4-F4 -> -40 | I4: 40 | K4: =J4-I4 -> -40 | L4: 40 | N4: =M4-L4 -> -40 | O4: 40 | Q4: =P4-O4 -> -40 | R4: 40 | T4: =S4-R4 -> -40 | U4: 40 | W4: =V4-U4 -> -40 | X4: 40 | Z4: =Y4-X4 -> -40 | AA4: 40 | AC4: =AB4-AA4 -> -40 | AD4: 40 | AF4: =AE4-AD4 -> -40 | AG4: 40 | AI4: =AH4-AG4 -> -40 | AJ4: 40 | AL4: =AK4-AJ4 -> -40 | AM4: 40 | AO4: =AN4-AM4 -> -40 | AP4: 40 | AR4: =AQ4-AP4 -> -40 | AS4: 40 | AU4: =AT4-AS4 -> -40 | AV4: 40 | AX4: =AW4-AV4 -> -40 | AY4: 40 | BA4: =AZ4-AY4 -> -40 | BB4: 40 | BD4: =BC4-BB4 -> -40 | BE4: 40 | BG4: =BF4-BE4 -> -40 | BH4: 40 | BJ4: =BI4-BH4 -> -40 | BK4: 40 | BM4: =BL4-BK4 -> -40 | BN4: 40 | BP4: =BO4-BN4 -> -40 | BQ4: 40 | BS4: =BR4-BQ4 -> -40 | BT4: 40 | BV4: =BU4-BT4 -> -40 | BW4: 40 | BY4: =BX4-BW4 -> -40
B5: Buy-in + Rake (1), $ | C5: 15 | D5: 15 | F5: 15 | I5: 15 | L5: 15 | O5: 15 | R5: 15 | U5: 15 | X5: 15 | AA5: 15 | AD5: 15 | AG5: 15 | AJ5: 15 | AM5: 15 | AP5: 15 | AS5: 15 | AV5: 15 | AY5: 15 | BB5: 15 | BE5: 15 | BH5: 15 | BK5: 15 | BN5: 15 | BQ5: 15 | BT5: 15 | BW5: 15
B6: Rake (1), $ | C6: 0.61 | D6: 0.61 | F6: 0.61 | I6: 0.61 | L6: 0.61 | O6: 0.61 | R6: 0.61 | U6: 0.61 | X6: 0.61 | AA6: 0.61 | AD6: 0.61 | AG6: 0.61 | AJ6: 0.61 | AM6: 0.61 | AP6: 0.61 | AS6: 0.61 | AV6: 0.61 | AY6: 0.61 | BB6: 0.61 | BE6: 0.61 | BH6: 0.61 | BK6: 0.61 | BN6: 0.61 | BQ6: 0.61 | BT6: 0.61 | BW6: 0.61
B7: Number of Tournaments (2) | C7: 8 | D7: 10 | E7: =D7-C7 -> 2 | F7: 10 | H7: =G7-F7 -> -10 | I7: 10 | K7: =J7-I7 -> -10 | L7: 10 | N7: =M7-L7 -> -10 | O7: 10 | Q7: =P7-O7 -> -10 | R7: 10 | T7: =S7-R7 -> -10 | U7: 10 | W7: =V7-U7 -> -10 | X7: 10 | Z7: =Y7-X7 -> -10 | AA7: 10 | AC7: =AB7-AA7 -> -10 | AD7: 10 | AF7: =AE7-AD7 -> -10 | AG7: 10 | AI7: =AH7-AG7 -> -10 | AJ7: 10 | AL7: =AK7-AJ7 -> -10 | AM7: 10 | AO7: =AN7-AM7 -> -10 | AP7: 10 | AR7: =AQ7-AP7 -> -10 | AS7: 10 | AU7: =AT7-AS7 -> -10 | AV7: 10 | AX7: =AW7-AV7 -> -10 | AY7: 10 | BA7: =AZ7-AY7 -> -10 | BB7: 10 | BD7: =BC7-BB7 -> -10 | BE7: 10 | BG7: =BF7-BE7 -> -10 | BH7: 10 | BJ7: =BI7-BH7 -> -10 | BK7: 10 | BM7: =BL7-BK7 -> -10 | BN7: 10 | BP7: =BO7-BN7 -> -10 | BQ7: 10 | BS7: =BR7-BQ7 -> -10 | BT7: 10 | BV7: =BU7-BT7 -> -10 | BW7: 10 | BY7: =BX7-BW7 -> -10
B8: Buy-in + Rake (2), $ | C8: 30 | D8: 30 | F8: 30 | I8: 30 | L8: 30 | O8: 30 | R8: 30 | U8: 30 | X8: 30 | AA8: 30 | AD8: 30 | AG8: 30 | AJ8: 30 | AM8: 30 | AP8: 30 | AS8: 30 | AV8: 30 | AY8: 30 | BB8: 30 | BE8: 30 | BH8: 30 | BK8: 30 | BN8: 30 | BQ8: 30 | BT8: 30 | BW8: 30
B9: Rake (2), $ | C9: 1.22 | D9: 1.22 | F9: 1.22 | I9: 1.22 | L9: 1.22 | O9: 1.22 | R9: 1.22 | U9: 1.22 | X9: 1.22 | AA9: 1.22 | AD9: 1.22 | AG9: 1.22 | AJ9: 1.22 | AM9: 1.22 | AP9: 1.22 | AS9: 1.22 | AV9: 1.22 | AY9: 1.22 | BB9: 1.22 | BE9: 1.22 | BH9: 1.22 | BK9: 1.22 | BN9: 1.22 | BQ9: 1.22 | BT9: 1.22 | BW9: 1.22
B10: ROI EV, % | C10: 0.1 | D10: 0.15 | E10: =D10-C10 -> 0.05 | F10: 0.1 | H10: =G10-F10 -> -0.1 | I10: 0.1 | K10: =J10-I10 -> -0.1 | L10: 0.1 | N10: =M10-L10 -> -0.1 | O10: 0.1 | Q10: =P10-O10 -> -0.1 | R10: 0.1 | T10: =S10-R10 -> -0.1 | U10: 0.1 | W10: =V10-U10 -> -0.1 | X10: 0.1 | Z10: =Y10-X10 -> -0.1 | AA10: 0.1 | AC10: =AB10-AA10 -> -0.1 | AD10: 0.1 | AF10: =AE10-AD10 -> -0.1 | AG10: 0.1 | AI10: =AH10-AG10 -> -0.1 | AJ10: 0.1 | AL10: =AK10-AJ10 -> -0.1 | AM10: 0.1 | AO10: =AN10-AM10 -> -0.1 | AP10: 0.1 | AR10: =AQ10-AP10 -> -0.1 | AS10: 0.1 | AU10: =AT10-AS10 -> -0.1 | AV10: 0.1 | AX10: =AW10-AV10 -> -0.1 | AY10: 0.1 | BA10: =AZ10-AY10 -> -0.1 | BB10: 0.1 | BD10: =BC10-BB10 -> -0.1 | BE10: 0.1 | BG10: =BF10-BE10 -> -0.1 | BH10: 0.1 | BJ10: =BI10-BH10 -> -0.1 | BK10: 0.1 | BM10: =BL10-BK10 -> -0.1 | BN10: 0.1 | BP10: =BO10-BN10 -> -0.1 | BQ10: 0.1 | BS10: =BR10-BQ10 -> -0.1 | BT10: 0.1 | BV10: =BU10-BT10 -> -0.1 | BW10: 0.1 | BY10: =BX10-BW10 -> -0.1
B11: ROI, % | C11: 0.1 | D11: 0.2 | E11: =D11-C11 -> 0.1 | F11: 0.1 | H11: =G11-F11 -> -0.1 | I11: 0.1 | K11: =J11-I11 -> -0.1 | L11: 0.1 | N11: -0.1 | O11: 0.1 | Q11: -0.1 | R11: 0.1 | T11: -0.1 | U11: 0.1 | W11: -0.1 | X11: 0.1 | Z11: -0.1 | AA11: 0.1 | AC11: -0.1 | AD11: 0.1 | AF11: -0.1 | AG11: 0.1 | AI11: -0.1 | AJ11: 0.1 | AL11: -0.1 | AM11: 0.1 | AO11: -0.1 | AP11: 0.1 | AR11: -0.1 | AS11: 0.1 | AU11: -0.1 | AV11: 0.1 | AX11: -0.1 | AY11: 0.1 | BA11: -0.1 | BB11: 0.1 | BD11: -0.1 | BE11: 0.1 | BG11: -0.1 | BH11: 0.1 | BJ11: -0.1 | BK11: 0.1 | BM11: -0.1 | BN11: 0.1 | BP11: -0.1 | BQ11: 0.1 | BS11: -0.1 | BT11: 0.1 | BV11: -0.1 | BW11: 0.1 | BY11: -0.1
B12: Wins EV, $ | C12: =((C4*C5)+(C7*C8))*C10 -> 72 | D12: =((D4*D5)+(D7*D8))*D10 -> 112.5 | E12: =D12-C12 -> 40.5 | F12: =((F4*F5)+(F7*F8))*F10 -> 90 | G12: =((G4*G5)+(G7*G8))*G10 -> 0 | H12: =G12-F12 -> -90 | I12: =((I4*I5)+(I7*I8))*I10 -> 90 | J12: =((J4*J5)+(J7*J8))*J10 -> 0 | K12: =J12-I12 -> -90 | L12: =((L4*L5)+(L7*L8))*L10 -> 90 | M12: 0 | N12: -90 | O12: =((O4*O5)+(O7*O8))*O10 -> 90 | P12: 0 | Q12: -90 | R12: =((R4*R5)+(R7*R8))*R10 -> 90 | S12: 0 | T12: -90 | U12: =((U4*U5)+(U7*U8))*U10 -> 90 | V12: 0 | W12: -90 | X12: =((X4*X5)+(X7*X8))*X10 -> 90 | Y12: 0 | Z12: -90 | AA12: =((AA4*AA5)+(AA7*AA8))*AA10 -> 90 | AB12: 0 | AC12: -90 | AD12: =((AD4*AD5)+(AD7*AD8))*AD10 -> 90 | AE12: 0 | AF12: -90 | AG12: =((AG4*AG5)+(AG7*AG8))*AG10 -> 90 | AH12: 0 | AI12: -90 | AJ12: =((AJ4*AJ5)+(AJ7*AJ8))*AJ10 -> 90 | AK12: 0 | AL12: -90 | AM12: =((AM4*AM5)+(AM7*AM8))*AM10 -> 90 | AN12: 0 | AO12: -90 | AP12: =((AP4*AP5)+(AP7*AP8))*AP10 -> 90 | AQ12: 0 | AR12: -90 | AS12: =((AS4*AS5)+(AS7*AS8))*AS10 -> 90 | AT12: 0 | AU12: -90 | AV12: =((AV4*AV5)+(AV7*AV8))*AV10 -> 90 | AW12: 0 | AX12: -90 | AY12: =((AY4*AY5)+(AY7*AY8))*AY10 -> 90 | AZ12: 0 | BA12: -90 | BB12: =((BB4*BB5)+(BB7*BB8))*BB10 -> 90 | BC12: 0 | BD12: -90 | BE12: =((BE4*BE5)+(BE7*BE8))*BE10 -> 90 | BF12: 0 | BG12: -90 | BH12: =((BH4*BH5)+(BH7*BH8))*BH10 -> 90 | BI12: 0 | BJ12: -90 | BK12: =((BK4*BK5)+(BK7*BK8))*BK10 -> 90 | BL12: 0 | BM12: -90 | BN12: =((BN4*BN5)+(BN7*BN8))*BN10 -> 90 | BO12: 0 | BP12: -90 | BQ12: =((BQ4*BQ5)+(BQ7*BQ8))*BQ10 -> 90 | BR12: 0 | BS12: -90 | BT12: =((BT4*BT5)+(BT7*BT8))*BT10 -> 90 | BU12: 0 | BV12: -90 | BW12: =((BW4*BW5)+(BW7*BW8))*BW10 -> 90 | BX12: 0 | BY12: -90
B13: Wins, $ | C13: =((C4*C5)+(C7*C8))*C11 -> 72 | D13: =((D4*D5)+(D7*D8))*D11 -> 150 | E13: 78 | F13: =((F4*F5)+(F7*F8))*F11 -> 90 | G13: =((G4*G5)+(G7*G8))*G11 -> 0 | H13: -90 | I13: =((I4*I5)+(I7*I8))*I11 -> 90 | J13: =((J4*J5)+(J7*J8))*J11 -> 0 | K13: -90 | L13: =((L4*L5)+(L7*L8))*L11 -> 90 | M13: 0 | N13: -90 | O13: =((O4*O5)+(O7*O8))*O11 -> 90 | P13: 0 | Q13: -90 | R13: =((R4*R5)+(R7*R8))*R11 -> 90 | S13: 0 | T13: -90 | U13: =((U4*U5)+(U7*U8))*U11 -> 90 | V13: 0 | W13: -90 | X13: =((X4*X5)+(X7*X8))*X11 -> 90 | Y13: 0 | Z13: -90 | AA13: =((AA4*AA5)+(AA7*AA8))*AA11 -> 90 | AB13: 0 | AC13: -90 | AD13: =((AD4*AD5)+(AD7*AD8))*AD11 -> 90 | AE13: 0 | AF13: -90 | AG13: =((AG4*AG5)+(AG7*AG8))*AG11 -> 90 | AH13: 0 | AI13: -90 | AJ13: =((AJ4*AJ5)+(AJ7*AJ8))*AJ11 -> 90 | AK13: 0 | AL13: -90 | AM13: =((AM4*AM5)+(AM7*AM8))*AM11 -> 90 | AN13: 0 | AO13: -90 | AP13: =((AP4*AP5)+(AP7*AP8))*AP11 -> 90 | AQ13: 0 | AR13: -90 | AS13: =((AS4*AS5)+(AS7*AS8))*AS11 -> 90 | AT13: 0 | AU13: -90 | AV13: =((AV4*AV5)+(AV7*AV8))*AV11 -> 90 | AW13: 0 | AX13: -90 | AY13: =((AY4*AY5)+(AY7*AY8))*AY11 -> 90 | AZ13: 0 | BA13: -90 | BB13: =((BB4*BB5)+(BB7*BB8))*BB11 -> 90 | BC13: 0 | BD13: -90 | BE13: =((BE4*BE5)+(BE7*BE8))*BE11 -> 90 | BF13: 0 | BG13: -90 | BH13: =((BH4*BH5)+(BH7*BH8))*BH11 -> 90 | BI13: 0 | BJ13: -90 | BK13: =((BK4*BK5)+(BK7*BK8))*BK11 -> 90 | BL13: 0 | BM13: -90 | BN13: =((BN4*BN5)+(BN7*BN8))*BN11 -> 90 | BO13: 0 | BP13: -90 | BQ13: =((BQ4*BQ5)+(BQ7*BQ8))*BQ11 -> 90 | BR13: 0 | BS13: -90 | BT13: =((BT4*BT5)+(BT7*BT8))*BT11 -> 90 | BU13: 0 | BV13: -90 | BW13: =((BW4*BW5)+(BW7*BW8))*BW11 -> 90 | BX13: 0 | BY13: -90
B14: Hours, h | C14: =(C4+C7)/10 -> 4 | D14: =(D4+D7)/10 -> 4 | E14: 0 | F14: =(F4+F7)/10 -> 5 | G14: =(G4+G7)/10 -> 0 | H14: -5 | I14: =(I4+I7)/10 -> 5 | J14: =(J4+J7)/10 -> 0 | K14: -5 | L14: =(L4+L7)/10 -> 5 | M14: 0 | N14: -5 | O14: =(O4+O7)/10 -> 5 | P14: 0 | Q14: -5 | R14: =(R4+R7)/10 -> 5 | S14: 0 | T14: -5 | U14: =(U4+U7)/10 -> 5 | V14: 0 | W14: -5 | X14: =(X4+X7)/10 -> 5 | Y14: 0 | Z14: -5 | AA14: =(AA4+AA7)/10 -> 5 | AB14: 0 | AC14: -5 | AD14: =(AD4+AD7)/10 -> 5 | AE14: 0 | AF14: -5 | AG14: =(AG4+AG7)/10 -> 5 | AH14: 0 | AI14: -5 | AJ14: =(AJ4+AJ7)/10 -> 5 | AK14: 0 | AL14: -5 | AM14: =(AM4+AM7)/10 -> 5 | AN14: 0 | AO14: -5 | AP14: =(AP4+AP7)/10 -> 5 | AQ14: 0 | AR14: -5 | AS14: =(AS4+AS7)/10 -> 5 | AT14: 0 | AU14: -5 | AV14: =(AV4+AV7)/10 -> 5 | AW14: 0 | AX14: -5 | AY14: =(AY4+AY7)/10 -> 5 | AZ14: 0 | BA14: -5 | BB14: =(BB4+BB7)/10 -> 5 | BC14: 0 | BD14: -5 | BE14: =(BE4+BE7)/10 -> 5 | BF14: 0 | BG14: -5 | BH14: =(BH4+BH7)/10 -> 5 | BI14: 0 | BJ14: -5 | BK14: =(BK4+BK7)/10 -> 5 | BL14: 0 | BM14: -5 | BN14: =(BN4+BN7)/10 -> 5 | BO14: 0 | BP14: -5 | BQ14: =(BQ4+BQ7)/10 -> 5 | BR14: 0 | BS14: -5 | BT14: =(BT4+BT7)/10 -> 5 | BU14: 0 | BV14: -5 | BW14: =(BW4+BW7)/10 -> 5 | BX14: 0 | BY14: -5
B15: VPP's | C15: =((C4*C6)+C9*C7)*5.5 -> 161.04 | D15: =((D4*D6)+D9*D7)*5.5 -> 167.75 | E15: 6.71 | F15: =((F4*F6)+F9*F7)*5.5 -> 201.3 | G15: =((G4*G6)+G9*G7)*5.5 -> 0 | H15: -201.3 | I15: =((I4*I6)+I9*I7)*5.5 -> 201.3 | J15: =((J4*J6)+J9*J7)*5.5 -> 0 | K15: -201.3 | L15: =((L4*L6)+L9*L7)*5.5 -> 201.3 | M15: 0 | N15: -201.3 | O15: =((O4*O6)+O9*O7)*5.5 -> 201.3 | P15: 0 | Q15: -201.3 | R15: =((R4*R6)+R9*R7)*5.5 -> 201.3 | S15: 0 | T15: -201.3 | U15: =((U4*U6)+U9*U7)*5.5 -> 201.3 | V15: 0 | W15: -201.3 | X15: =((X4*X6)+X9*X7)*5.5 -> 201.3 | Y15: 0 | Z15: -201.3 | AA15: =((AA4*AA6)+AA9*AA7)*5.5 -> 201.3 | AB15: 0 | AC15: -201.3 | AD15: =((AD4*AD6)+AD9*AD7)*5.5 -> 201.3 | AE15: 0 | AF15: -201.3 | AG15: =((AG4*AG6)+AG9*AG7)*5.5 -> 201.3 | AH15: 0 | AI15: -201.3 | AJ15: =((AJ4*AJ6)+AJ9*AJ7)*5.5 -> 201.3 | AK15: 0 | AL15: -201.3 | AM15: =((AM4*AM6)+AM9*AM7)*5.5 -> 201.3 | AN15: 0 | AO15: -201.3 | AP15: =((AP4*AP6)+AP9*AP7)*5.5 -> 201.3 | AQ15: 0 | AR15: -201.3 | AS15: =((AS4*AS6)+AS9*AS7)*5.5 -> 201.3 | AT15: 0 | AU15: -201.3 | AV15: =((AV4*AV6)+AV9*AV7)*5.5 -> 201.3 | AW15: 0 | AX15: -201.3 | AY15: =((AY4*AY6)+AY9*AY7)*5.5 -> 201.3 | AZ15: 0 | BA15: -201.3 | BB15: =((BB4*BB6)+BB9*BB7)*5.5 -> 201.3 | BC15: 0 | BD15: -201.3 | BE15: =((BE4*BE6)+BE9*BE7)*5.5 -> 201.3 | BF15: 0 | BG15: -201.3 | BH15: =((BH4*BH6)+BH9*BH7)*5.5 -> 201.3 | BI15: 0 | BJ15: -201.3 | BK15: =((BK4*BK6)+BK9*BK7)*5.5 -> 201.3 | BL15: 0 | BM15: -201.3 | BN15: =((BN4*BN6)+BN9*BN7)*5.5 -> 201.3 | BO15: 0 | BP15: -201.3 | BQ15: =((BQ4*BQ6)+BQ9*BQ7)*5.5 -> 201.3 | BR15: 0 | BS15: -201.3 | BT15: =((BT4*BT6)+BT9*BT7)*5.5 -> 201.3 | BU15: 0 | BV15: -201.3 | BW15: =((BW4*BW6)+BW9*BW7)*5.5 -> 201.3 | BX15: 0 | BY15: -201.3
B17: Description | C17: Total Plan | D17: Total Fact | E17: Total Deviation
B18: Date | C18: Март | D18: Март | E18: Март
B19: Number of Tournaments (1) | C19: =BW4+BT4+BQ4+BN4+BK4+BH4+BE4+BB4+AY4+AV4+AS4+AP4+AM4+AJ4+AG4+AD4+AA4+X4+U4+O4+L4+F4+I4+C4 -> 952 | D19: =BX4+BU4+BR4+BO4+BL4+BI4+BF4+BC4+AZ4+AW4+AT4+AQ4+AN4+AK4+AH4+AE4+AB4+Y4+V4+P4+M4+G4+J4+D4 -> 30 | E19: =D19-C19 -> -922
B20: Buy-in + Rake (1) | C20: 15 | D20: 15
B21: Rake (1) | C21: 0.61 | D21: 0.61
B22: Number of Tournaments (2) | C22: =BW7+BT7+BQ7+BN7+BK7+BH7+BE7+BB7+AY7+AV7+AS7+AP7+AM7+AJ7+AG7+AD7+AA7+X7+U7+O7+L7+F7+I7+C7 -> 238 | D22: =BX7+BU7+BR7+BO7+BL7+BI7+BF7+BC7+AZ7+AW7+AT7+AQ7+AN7+AK7+AH7+AE7+AB7+Y7+V7+P7+M7+G7+J7+D7 -> 10 | E22: =D22-C22 -> -228
B23: Buy-in + Rake (2) | C23: 30 | D23: 30
B24: Rake (2) | C24: 1.22 | D24: 1.22
B25: ROI EV, % | C25: =AVERAGE(C10,F10,I10,L10,O10,R10,U10,X10,AA10,AD10,AG10,AJ10,AM10,AP10,AQ22,AS10,AV10,AY10,BB10,BE10,BH10,BK10,BN10,BQ10,BT10,BW10) -> 0.1 | D25: =AVERAGE(D10,G10,J10,M10,P10,S10,V10,Y10,AB10,AE10,AH10,AK10,AN10,AQ10,AR22,AT10,AW10,AZ10,BC10,BF10,BI10,BL10,BO10,BR10,BU10,BX10) -> 0.15 | E25: =D25-C25 -> 0.05
B26: ROI, % | C26: =AVERAGE(C11,F11,I11,L11,O11,R11,U11,X11,AA11,AD11,AG11,AJ11,AM11,AP11,AQ23,AS11,AV11,AY11,BB11,BE11,BH11,BK11,BN11,BQ11,BT11,BW11) -> 0.1 | D26: =AVERAGE(D11,G11,J11,M11,P11,S11,V11,Y11,AB11,AE11,AH11,AK11,AN11,AQ11,AR23,AT11,AW11,AZ11,BC11,BF11,BI11,BL11,BO11,BR11,BU11,BX11) -> 0.2 | E26: =D26-C26 -> 0.1
B27: Wins EV$ | C27: =((C19*C20)+(C22*C23))*C25 -> 2142 | D27: =((D19*D20)+(D22*D23))*D25 -> 112.5 | E27: =D27-C27 -> -2029.5
B28: Wins $ | C28: =((C19*C20)+(C22*C23))*C26 -> 2142 | D28: =((D19*D20)+(D22*D23))*D26 -> 150 | E28: =D28-C28 -> -1992
B29: Hours | C29: =(C19+C22)/10 -> 119 | D29: =(D19+D22)/10 -> 4 | E29: =D29-C29 -> -115
B30: VPP's | C30: =((C19*C21)+C24*C22)*5.5 -> 4790.94 | D30: =((D19*D21)+D24*D22)*5.5 -> 167.75 | E30: =D30-C30 -> -4623.19

Sheet Лист2

Sheet Лист3
